fUST/lending_fUST_20250819
["ID","MTS","AMOUNT","RATE_DAILY","PERIOD"]
[380210927,1755611440320,-383.95288536,0.00019178,2]
[380210928,1755611440330,-613.65319889,0.00019178,2]
[380210929,1755611440340,-480.0,0.00019178,2]
[380210930,1755611440349,-487.42111243,0.00019178,2]
[380210931,1755611440359,-480.0,0.00019178,2]
[380210932,1755611440368,-480.0,0.00019178,2]
[380210933,1755611440378,-480.0,0.00019178,2]
[380210934,1755611440388,-480.0,0.00019178,2]
[380210935,1755611440397,-480.0,0.00019178,2]
[380210936,1755611440407,-480.0,0.00019178,2]
[380210937,1755611440417,-480.0,0.00019178,2]
[380210938,1755611440426,-480.0,0.00019178,2]
[380210939,1755611440436,-480.0,0.00019178,2]
[380210940,1755611440446,-480.0,0.00019178,2]
[380210941,1755611440455,-543.23159899,0.00019178,2]
[380210942,1755611440465,-480.0,0.00019178,2]
[380210943,1755611440474,-500.54,0.00019178,2]
[380210944,1755611440484,-480.0,0.00019178,2]
[380210945,1755611440494,-480.0,0.00019178,2]
[380210946,1755611440503,-727.26,0.00019178,2]
[380210947,1755611440512,-480.0,0.00019178,2]
[380210948,1755611440522,-480.0,0.00019178,2]
[380210949,1755611440532,-480.0,0.00019178,2]
[380210950,1755611440542,-480.0,0.00019178,2]
[380210951,1755611440552,-306.8640188,0.00019178,2]
[380210952,1755611440561,-480.0,0.00019178,2]
[380210953,1755611440571,-480.0,0.00019178,2]
[380210954,1755611440581,-480.0,0.00019178,2]
[380210955,1755611440590,-480.0,0.00019178,2]
[380210957,1755611440599,-480.0,0.00019178,2]
[380210959,1755611440612,-480.0,0.00019178,2]
[380210961,1755611440621,-480.0,0.00019178,2]
[380210962,1755611440630,-460.0,0.00019178,2]
[380210965,1755611440640,-480.0,0.00019178,2]
[380210966,1755611440650,-480.0,0.00019178,2]
[380210967,1755611440659,-1003.54782065,0.00019178,2]
[380210969,1755611440671,-480.0,0.00019178,2]
[380210971,1755611440683,-480.0,0.00019178,2]
[380210972,1755611440693,-480.0,0.00019178,2]
[380210973,1755611440702,-480.0,0.00019178,2]
[380210974,1755611440711,-480.0,0.00019178,2]
[380210975,1755611440721,-537.54,0.00019178,2]
[380210976,1755611440732,-480.0,0.00019178,2]
[380210977,1755611440741,-480.0,0.00019178,2]
[380210978,1755611440751,-480.0,0.00019178,2]
[380210979,1755611440760,-480.0,0.00019178,2]
[380210980,1755611440769,-480.0,0.00019178,2]
[380210981,1755611440779,-480.0,0.00019178,2]
[380210982,1755611440788,-480.0,0.00019178,2]
[380210983,1755611440798,-480.0,0.00019178,2]
[380210984,1755611440808,-480.0,0.00019178,2]
[380210985,1755611440817,-480.0,0.00019178,2]
[380210987,1755611440827,-321.07443754,0.00019178,2]
[380210988,1755611440837,-183.58348007,0.00019178,2]
[380210989,1755611440846,-480.0,0.00019178,2]
[380210990,1755611440856,-480.0,0.00019178,2]
[380210991,1755611440866,-480.0,0.00019178,2]
[380210992,1755611440876,-480.0,0.00019178,2]
[380210993,1755611440886,-691.08,0.00019178,2]
[380210994,1755611440896,-480.0,0.00019178,2]
[380210995,1755611440907,-480.0,0.00019178,2]
[380210996,1755611440917,-480.0,0.00019178,2]
[380210997,1755611440927,-480.0,0.00019178,2]
[380210998,1755611440938,-480.0,0.00019178,2]
[380210999,1755611440947,-480.0,0.00019178,2]
[380211000,1755611440957,-480.0,0.00019178,2]
[380211001,1755611440966,-355.84649215,0.00019178,2]
[380211002,1755611440975,-480.0,0.00019178,2]
[380211003,1755611440985,-480.0,0.00019178,2]
[380211004,1755611440994,-500.0,0.00019178,2]
[380211005,1755611441004,-500.0,0.00019178,2]
[380211006,1755611441013,-480.0,0.00019178,2]
[380211007,1755611441023,-500.0,0.00019178,2]
[380211008,1755611441033,-500.0,0.00019178,2]
[380211009,1755611441042,-500.0,0.00019178,2]
[380211010,1755611441051,-500.0,0.00019178,2]
[380211011,1755611441061,-500.0,0.00019178,2]
[380211012,1755611441069,-480.0,0.00019178,2]
[380211013,1755611441078,-500.0,0.00019178,2]
[380211014,1755611441088,-500.0,0.00019178,2]
[380211015,1755611441097,-500.0,0.00019178,2]
[380211016,1755611441106,-449.74255349,0.00019178,2]
[380211017,1755611441116,-500.0,0.00019178,2]
[380211018,1755611441126,-500.0,0.00019178,2]
[380211019,1755611441135,-500.0,0.00019178,2]
[380211020,1755611441145,-500.0,0.00019178,2]
[380211021,1755611441154,-500.0,0.00019178,2]
[380211022,1755611441163,-480.0,0.00019178,2]
[380211023,1755611441173,-500.0,0.00019178,2]
[380211024,1755611441182,-480.0,0.00019178,2]
[380211025,1755611441193,-289.6,0.00019178,2]
[380211026,1755611441203,-480.0,0.00019178,2]
[380211027,1755611441213,-480.0,0.00019178,2]
[380211028,1755611441223,-480.0,0.00019178,2]
[380211029,1755611441233,-480.0,0.00019178,2]
[380211030,1755611441243,-480.0,0.00019178,2]
[380211031,1755611441253,-480.0,0.00019178,2]
[380211032,1755611441262,-480.0,0.00019178,2]
[380211033,1755611441272,-1008.63,0.00019178,2]
[380211034,1755611441281,-480.0,0.00019178,2]
[380211035,1755611441291,-480.0,0.00019178,2]
[380211036,1755611441301,-3454.26,0.00019178,2]
[380211037,1755611441311,-480.0,0.00019178,2]
[380211038,1755611441320,-480.0,0.00019178,2]
[380211039,1755611441330,-480.0,0.00019178,2]
[380211040,1755611441340,-480.0,0.00019178,2]
[380211041,1755611441349,-1581.18,0.00019178,2]
[380211042,1755611441359,-480.0,0.00019178,2]
[380211043,1755611441368,-1203.07,0.00019178,2]
[380211044,1755611441378,-1006.98,0.00019178,2]
[380211045,1755611441387,-480.0,0.00019178,2]
[380211046,1755611441396,-559.67047086,0.00019178,2]
[380211047,1755611441406,-830.99,0.00019178,2]
[380211048,1755611441415,-480.0,0.00019178,2]
[380211049,1755611441425,-480.0,0.00019178,2]
[380211050,1755611441434,-480.0,0.00019178,2]
[380211051,1755611441445,-480.0,0.00019178,2]
[380211052,1755611441454,-480.0,0.00019178,2]
[380211053,1755611441464,-480.0,0.00019178,2]
[380211054,1755611441473,-480.0,0.00019178,2]
[380211055,1755611441483,-569.92274895,0.00019178,2]
[380211056,1755611441492,-480.0,0.00019178,2]
[380211057,1755611441502,-480.0,0.00019178,2]
[380211058,1755611441512,-480.0,0.00019178,2]
[380211059,1755611441521,-480.0,0.00019178,2]
[380211060,1755611441531,-480.0,0.00019178,2]
[380211061,1755611441540,-480.0,0.00019178,2]
[380211062,1755611441550,-480.0,0.00019178,2]
[380211063,1755611441559,-480.0,0.00019178,2]
[380211064,1755611441569,-480.0,0.00019178,2]
[380211065,1755611441578,-480.0,0.00019178,2]
[380211066,1755611441588,-480.0,0.00019178,2]
[380211067,1755611441598,-427.28023155,0.00019178,2]
[380211068,1755611441609,-480.0,0.00019178,2]
[380211069,1755611441620,-480.0,0.00019178,2]
[380211070,1755611441629,-500.0,0.00019178,2]
[380211071,1755611441639,-500.0,0.00019178,2]
[380211072,1755611441648,-480.0,0.00019178,2]
[380211073,1755611441659,-480.0,0.00019178,2]
[380211074,1755611441668,-500.0,0.00019178,2]
[380211075,1755611441678,-500.0,0.00019178,2]
[380211076,1755611441688,-500.0,0.00019178,2]
[380211077,1755611441697,-500.0,0.00019178,2]
[380211078,1755611441707,-500.0,0.00019178,2]
[380211079,1755611441716,-480.85774436,0.00019178,2]
[380211080,1755611441726,-500.0,0.00019178,2]
[380211081,1755611441735,-500.0,0.00019178,2]
[380211082,1755611441744,-500.0,0.00019178,2]
[380211083,1755611441754,-480.0,0.00019178,2]
[380211084,1755611441763,-480.0,0.00019178,2]
[380211085,1755611441773,-480.0,0.00019178,2]
[380211086,1755611441782,-480.0,0.00019178,2]
[380211087,1755611441792,-480.0,0.00019178,2]
[380211088,1755611441808,-480.0,0.00019178,2]
[380211089,1755611441819,-500.0,0.00019178,2]
[380211090,1755611441829,-480.0,0.00019178,2]
[380211091,1755611441839,-500.0,0.00019178,2]
[380211092,1755611441848,-500.0,0.00019178,2]
[380211093,1755611441857,-480.0,0.00019178,2]
[380211094,1755611441867,-500.0,0.00019178,2]
[380211095,1755611441876,-500.0,0.00019178,2]
[380211096,1755611441886,-480.0,0.00019178,2]
[380211097,1755611441895,-500.0,0.00019178,2]
[380211098,1755611441905,-500.0,0.00019178,2]
[380211099,1755611441914,-500.0,0.00019178,2]
[380211100,1755611441923,-480.0,0.00019178,2]
[380211101,1755611441933,-500.0,0.00019178,2]
[380211102,1755611441943,-500.0,0.00019178,2]
[380211103,1755611441952,-500.0,0.00019178,2]
[380211104,1755611441961,-500.0,0.00019178,2]
[380211105,1755611441970,-500.0,0.00019178,2]
[380211106,1755611441979,-500.0,0.00019178,2]
[380211107,1755611441988,-460.0,0.00019178,2]
[380211108,1755611441997,-480.0,0.00019178,2]
[380211109,1755611442007,-500.0,0.00019178,2]
[380211110,1755611442016,-480.0,0.00019178,2]
[380211111,1755611442025,-455.9,0.00019178,2]
[380211112,1755611442035,-480.0,0.00019178,2]
[380211113,1755611442044,-480.0,0.00019178,2]
[380211114,1755611442053,-480.0,0.00019178,2]
[380211115,1755611442062,-480.0,0.00019178,2]
[380211116,1755611442071,-480.0,0.00019178,2]
[380211117,1755611442080,-480.0,0.00019178,2]
[380211118,1755611442089,-480.0,0.00019178,2]
[380211119,1755611442098,-480.0,0.00019178,2]
[380211120,1755611442107,-480.0,0.00019178,2]
[380211121,1755611442116,-230.38591391,0.00019178,2]
[380211122,1755611442125,-461.63460395,0.00019178,2]
[380211123,1755611442135,-480.0,0.00019178,2]
[380211124,1755611442145,-480.0,0.00019178,2]
[380211125,1755611442154,-480.0,0.00019178,2]
[380211126,1755611442163,-381.11262529,0.00019178,2]
[380211127,1755611442172,-480.0,0.00019178,2]
[380211128,1755611442181,-157.63815913,0.00019178,2]
[380211129,1755611442191,-480.0,0.00019178,2]
[380211130,1755611442200,-480.0,0.00019178,2]
[380211131,1755611442209,-480.0,0.00019178,2]
[380211132,1755611442219,-480.0,0.00019178,2]
[380211133,1755611442228,-480.0,0.00019178,2]
[380211134,1755611442237,-480.0,0.00019178,2]
[380211135,1755611442249,-480.0,0.00019178,2]
[380211136,1755611442258,-480.0,0.00019178,2]
[380211137,1755611442268,-480.0,0.00019178,2]
[380211138,1755611442277,-480.0,0.00019178,2]
[380211139,1755611442287,-480.0,0.00019178,2]
[380211140,1755611442296,-480.0,0.00019178,2]
[380211141,1755611442306,-440.0,0.00019178,2]
[380211142,1755611442315,-480.0,0.00019178,2]
[380211143,1755611442324,-480.0,0.00019178,2]
[380211144,1755611442333,-480.0,0.00019178,2]
[380211145,1755611442342,-480.0,0.00019178,2]
[380211146,1755611442352,-480.0,0.00019178,2]
[380211147,1755611442361,-480.0,0.00019178,2]
[380211148,1755611442371,-480.0,0.00019178,2]
[380211149,1755611442381,-480.0,0.00019178,2]
[380211150,1755611442391,-420.0,0.00019178,2]
[380211151,1755611442407,-213.08212822,0.00019178,2]
[380211152,1755611442416,-480.0,0.00019178,2]
[380211153,1755611442425,-480.0,0.00019178,2]
[380211154,1755611442434,-480.0,0.00019178,2]
[380211155,1755611442445,-480.0,0.00019178,2]
[380211156,1755611442455,-480.0,0.00019178,2]
[380211157,1755611442465,-480.0,0.00019178,2]
[380211158,1755611442474,-480.0,0.00019178,2]
[380211159,1755611442484,-480.0,0.00019178,2]
[380211160,1755611442493,-662.72,0.00019178,2]
[380211161,1755611442503,-480.0,0.00019178,2]
[380211162,1755611442512,-480.0,0.00019178,2]
[380211163,1755611442521,-480.0,0.00019178,2]
[380211164,1755611442531,-480.0,0.00019178,2]
[380211165,1755611442540,-480.0,0.00019178,2]
[380211166,1755611442557,-568.32508426,0.00019178,2]
[380211167,1755611442566,-9043.95,0.00019178,2]
[380211168,1755611442576,-480.0,0.00019178,2]
[380211169,1755611442585,-318.08374984,0.00019178,2]
[380211170,1755611442594,-441.7022495,0.00019178,2]
[380211171,1755611442604,-512.18,0.00019178,2]
[380211172,1755611442617,-695.77,0.00019178,2]
[380211173,1755611442626,-480.0,0.00019178,2]
[380211174,1755611442635,-480.0,0.00019178,2]
[380211175,1755611442644,-500.0,0.00019178,2]
[380211176,1755611442654,-500.0,0.00019178,2]
[380211177,1755611442663,-500.0,0.00019178,2]
[380211178,1755611442672,-500.0,0.00019178,2]
[380211179,1755611442681,-500.0,0.00019178,2]
[380211180,1755611442693,-500.0,0.00019178,2]
[380211181,1755611442702,-500.0,0.00019178,2]
[380211182,1755611442711,-410.76045847,0.00019178,2]
[380211183,1755611442720,-500.0,0.00019178,2]
[380211184,1755611442729,-738.13,0.00019178,2]
[380211185,1755611442738,-480.0,0.00019178,2]
[380211186,1755611442748,-480.0,0.00019178,2]
[380211187,1755611442757,-480.0,0.00019178,2]
[380211188,1755611442766,-480.0,0.00019178,2]
[380211189,1755611442775,-480.0,0.00019178,2]
[380211190,1755611442784,-480.0,0.00019178,2]
[380211191,1755611442794,-480.0,0.00019178,2]
[380211192,1755611442804,-480.0,0.00019178,2]
[380211193,1755611442813,-480.0,0.00019178,2]
[380211194,1755611442822,-480.0,0.00019178,2]
[380211195,1755611442832,-480.0,0.00019178,2]
[380211196,1755611442842,-480.0,0.00019178,2]
[380211197,1755611442852,-905.44,0.00019178,2]
[380211198,1755611442862,-480.0,0.00019178,2]
[380211199,1755611442872,-480.0,0.00019178,2]
[380211200,1755611442882,-480.0,0.00019178,2]
[380211201,1755611442891,-480.0,0.00019178,2]
[380211202,1755611442900,-480.0,0.00019178,2]
[380211203,1755611442910,-480.57317437,0.00019178,2]
[380211204,1755611442919,-480.0,0.00019178,2]
[380211205,1755611442929,-480.0,0.00019178,2]
[380211206,1755611442941,-480.0,0.00019178,2]
[380211207,1755611442953,-480.0,0.00019178,2]
[380211208,1755611442962,-480.0,0.00019178,2]
[380211209,1755611442972,-480.0,0.00019178,2]
[380211210,1755611442981,-480.0,0.00019178,2]
[380211211,1755611442990,-480.0,0.00019178,2]
[380211212,1755611442999,-462.38344847,0.00019178,2]
[380211213,1755611443009,-480.0,0.00019178,2]
[380211214,1755611443019,-480.0,0.00019178,2]
[380211215,1755611443028,-635.52,0.00019178,2]
[380211216,1755611443038,-480.0,0.00019178,2]
[380211217,1755611443047,-480.0,0.00019178,2]
[380211219,1755611443056,-480.0,0.00019178,2]
[380211220,1755611443066,-480.0,0.00019178,2]
[380211222,1755611443075,-480.0,0.00019178,2]
[380211224,1755611443084,-480.0,0.00019178,2]
[380211226,1755611443093,-1297.89,0.00019178,2]
[380211227,1755611443104,-480.0,0.00019178,2]
[380211228,1755611443114,-584.52,0.00019178,2]
[380211229,1755611443123,-532.32,0.00019178,2]
[380211230,1755611443133,-480.0,0.00019178,2]
[380211231,1755611443143,-480.0,0.00019178,2]
[380211232,1755611443153,-660.16,0.00019178,2]
[380211233,1755611443162,-480.0,0.00019178,2]
[380211234,1755611443172,-480.0,0.00019178,2]
[380211235,1755611443181,-2271.5,0.00019178,2]
[380211236,1755611443192,-480.0,0.00019178,2]
[380211237,1755611443202,-480.0,0.00019178,2]
[380211239,1755611443211,-480.0,0.00019178,2]
[380211240,1755611443220,-460.61306758,0.00019178,2]
[380211242,1755611443230,-771.83,0.00019178,2]
[380211243,1755611443240,-609.27418651,0.00019178,2]
[380211244,1755611443249,-480.0,0.00019178,2]
[380211245,1755611443258,-976.81,0.00019178,2]
[380211246,1755611443267,-480.0,0.00019178,2]
[380211247,1755611443276,-444.0208041,0.00019178,2]
[380211248,1755611443285,-480.0,0.00019178,2]
[380211249,1755611443295,-9418.78,0.00019178,2]
[380211250,1755611443304,-1561.91,0.00019178,2]
[380211251,1755611443314,-480.0,0.00019178,2]
[380211252,1755611443323,-480.0,0.00019178,2]
[380211253,1755611443333,-480.0,0.00019178,2]
[380211254,1755611443343,-480.0,0.00019178,2]
[380211255,1755611443353,-460.58498551,0.00019178,2]
[380211256,1755611443362,-480.0,0.00019178,2]
[380211257,1755611443372,-425.80773449,0.00019178,2]
[380211258,1755611443381,-480.0,0.00019178,2]
[380211259,1755611443391,-919.99,0.00019178,2]
[380211260,1755611443402,-480.0,0.00019178,2]
[380211261,1755611443411,-480.0,0.00019178,2]
[380211262,1755611443420,-1174.04,0.00019178,2]
[380211263,1755611443575,-404.51659479,0.00019178,2]
[380211264,1755611443584,-769.52,0.00019178,2]
[380211265,1755611443594,-480.0,0.00019178,2]
[380211266,1755611443605,-480.0,0.00019178,2]
[380211267,1755611443618,-480.0,0.00019178,2]
[380211268,1755611443627,-480.0,0.00019178,2]
[380211269,1755611443637,-480.0,0.00019178,2]
[380211270,1755611443647,-480.0,0.00019178,2]
[380211271,1755611443657,-1371.27,0.00019178,2]
[380211272,1755611443666,-278.33797847,0.00019178,2]
[380211273,1755611443676,-480.0,0.00019178,2]
[380211274,1755611443686,-480.0,0.00019178,2]
[380211275,1755611443699,-480.0,0.00019178,2]
[380211276,1755611443708,-461.27936865,0.00019178,2]
[380211278,1755611443717,-1429.48,0.00019178,2]
[380211279,1755611443726,-441.16948472,0.00019178,2]
[380211281,1755611443735,-181.88520843,0.00019178,2]
[380211283,1755611443745,-480.0,0.00019178,2]
[380211284,1755611443754,-621.42,0.00019178,2]
[380211286,1755611443764,-421.86429638,0.00019178,2]
[380211288,1755611443773,-480.0,0.00019178,2]
[380211289,1755611443782,-480.0,0.00019178,2]
[380211291,1755611443792,-480.0,0.00019178,2]
[380211293,1755611443802,-480.0,0.00019178,2]
[380211294,1755611443811,-480.0,0.00019178,2]
[380211296,1755611443820,-925.16,0.00019178,2]
[380211297,1755611443830,-866.53,0.00019178,2]
[380211298,1755611443839,-480.0,0.00019178,2]
[380211299,1755611443848,-480.0,0.00019178,2]
[380211300,1755611443858,-480.0,0.00019178,2]
[380211301,1755611443868,-480.0,0.00019178,2]
[380211302,1755611443877,-480.0,0.00019178,2]
[380211303,1755611443887,-480.0,0.00019178,2]
[380211304,1755611443897,-480.0,0.00019178,2]
[380211305,1755611443907,-480.0,0.00019178,2]
[380211306,1755611443919,-480.0,0.00019178,2]
[380211307,1755611443930,-480.0,0.00019178,2]
[380211308,1755611443942,-513.42,0.00019178,2]
[380211309,1755611443952,-429.0886432,0.00019178,2]
[380211310,1755611443962,-5767.78,0.00019178,2]
[380211311,1755611443971,-480.0,0.00019178,2]
[380211312,1755611443980,-480.0,0.00019178,2]
[380211313,1755611443990,-1012.72,0.00019178,2]
[380211314,1755611444000,-480.0,0.00019178,2]
[380211315,1755611444009,-480.0,0.00019178,2]
[380211316,1755611444018,-480.0,0.00019178,2]
[380211317,1755611444028,-480.0,0.00019178,2]
[380211318,1755611444037,-480.0,0.00019178,2]
[380211319,1755611444046,-480.0,0.00019178,2]
[380211320,1755611444056,-843.83,0.00019178,2]
[380211321,1755611444065,-480.0,0.00019178,2]
[380211322,1755611444075,-480.0,0.00019178,2]
[380211323,1755611444084,-480.0,0.00019178,2]
[380211324,1755611444094,-480.0,0.00019178,2]
[380211325,1755611444103,-480.0,0.00019178,2]
[380211326,1755611444113,-480.0,0.00019178,2]
[380211327,1755611444122,-480.0,0.00019178,2]
[380211328,1755611444132,-2861.97,0.00019178,2]
[380211329,1755611444142,-480.0,0.00019178,2]
[380211330,1755611444151,-480.0,0.00019178,2]
[380211331,1755611444161,-487.9,0.00019178,2]
[380211332,1755611444171,-480.0,0.00019178,2]
[380211333,1755611444180,-480.0,0.00019178,2]
[380211334,1755611444194,-480.0,0.00019178,2]
[380211335,1755611444204,-480.0,0.00019178,2]
[380211336,1755611444214,-480.0,0.00019178,2]
[380211337,1755611444223,-480.0,0.00019178,2]
[380211338,1755611444233,-1007.14,0.00019178,2]
[380211339,1755611444243,-480.0,0.00019178,2]
[380211340,1755611444252,-480.0,0.00019178,2]
[380211341,1755611444262,-480.0,0.00019178,2]
[380211342,1755611444272,-480.0,0.00019178,2]
[380211343,1755611444284,-480.0,0.00019178,2]
[380211344,1755611444295,-480.0,0.00019178,2]
[380211345,1755611444304,-480.0,0.00019178,2]
[380211346,1755611444314,-349.13663602,0.00019178,2]
[380211347,1755611444324,-480.0,0.00019178,2]
[380211348,1755611444335,-480.0,0.00019178,2]
[380211349,1755611444345,-804.3,0.00019178,2]
[380211350,1755611444357,-1487.10600383,0.00019178,2]
[380211351,1755611444549,-1184.28399617,0.00019178,2]
[380211352,1755611444559,-364.17576176,0.00019178,2]
[380211353,1755611444571,-736.12090922,0.00019178,2]
[380211354,1755611444917,-68.86332902,0.00019178,2]
[380211355,1755611444927,-97.42057515,0.00019178,2]
[380211356,1755611445083,-293.00176164,0.00019178,2]
[380211380,1755611446787,-89.57766321,0.00019178,2]
[380211381,1755611446797,-480.0,0.00019178,2]
[380211382,1755611446807,-187.24233679,0.00019178,2]
[380211388,1755611596417,-177.9118527,0.00018586,2]
[380211389,1755611599688,-201.04765892,0.00018586,2]
[380211390,1755611601837,-121.04048838,0.00018586,2]
[380211391,1755611835977,-267.66820722,0.00018586,2]
[380211392,1755611838583,-166.33485235,0.00018586,2]
[380211393,1755611840642,-65.99694043,0.00018586,2]
[380211394,1755611892626,882.448585,0.00018,2]
[380211395,1755611896876,460.535969,0.00013699,2]
[380211396,1755611993538,1000.0,0.00018077,2]
[380211397,1755612061779,1155.6,0.00028767,120]
[380211398,1755612206642,176.98,0.0001856,2]
[380211399,1755612214921,1000.0,0.00028767,120]
[380211400,1755612346542,-460.56707881,0.000189,2]
[380211401,1755612346572,-1200.0,0.00018977,2]
[380211402,1755612346600,-160.0,0.00018978,2]
[380211403,1755612346629,-2144.9432546,0.00018978,2]
[380211404,1755612346657,-509.31613073,0.00018978,2]
[380211405,1755612346863,-1050.34707172,0.00018978,2]
[380211406,1755612415400,1412.1552826,0.00018078,2]
[380211407,1755612420305,2029.40736159,0.00018978,2]
[380211408,1755612425120,-1559.66320241,0.00019072,2]
[380211409,1755612425141,-300.0,0.00019074,2]
[380211410,1755612425161,-300.0,0.00019074,2]
[380211411,1755612425181,-300.0,0.00019074,2]
[380211412,1755612425201,-300.0,0.00019076,2]
[380211413,1755612425222,-854.03946528,0.00019077,2]
[380211414,1755612440751,555.76599712,0.00018506,2]
[380211415,1755612595231,969.35774269,0.00018978,2]
[380211416,1755612598518,2904.1036024,0.00018148,2]
[380211417,1755612614005,28.51587016,0.00018978,2]
[380211418,1755612614027,1747.21557124,0.00018978,2]
[380211432,1755612632047,-969.35774267,0.00019072,2]
[380211433,1755612632057,-300.0,0.00019076,2]
[380211434,1755612632067,-300.0,0.00019076,2]
[380211435,1755612632076,-195.0,0.00019076,2]
[380211436,1755612632085,-300.0,0.00019076,2]
[380211437,1755612632095,-1200.0,0.00019076,2]
[380211438,1755612632105,-247.34437701,0.00019077,2]
[380211439,1755612632114,-500.0,0.00019077,2]
[380211440,1755612632123,-198.20169972,0.00019077,2]
[380211441,1755612632134,-500.0,0.00019077,2]
[380211442,1755612632143,-500.0,0.00019077,2]
[380211443,1755612632153,-487.54331328,0.00019077,2]
[380211444,1755612632163,-375.62439745,0.00019077,2]
[380211445,1755612632172,-40556.65376598,0.00019078,2]
[380211446,1755612632183,-430.31999999,0.00019078,2]
[380211447,1755612632200,-4675.7503055,0.00019078,2]
[380211449,1755612637760,-14089.49912575,0.00019078,2]
[380211450,1755612637771,-200868.02465446,0.00019078,2]
[380211451,1755612637782,-1000.0,0.00019078,2]
[380211452,1755612637793,-969.35774267,0.00019165,2]
[380211453,1755612637803,-2105.80870262,0.00019166,2]
[380211454,1755612637812,-500.0,0.00019173,2]
[380211455,1755612637822,-331.54512723,0.00019173,2]
[380211456,1755612637832,-500.0,0.00019173,2]
[380211457,1755612637842,-500.0,0.00019173,2]
[380211458,1755612637851,-500.0,0.00019173,2]
[380211459,1755612637861,-500.0,0.00019173,2]
[380211460,1755612637870,-503.04797693,0.00019173,2]
[380211461,1755612637880,-502.43706856,0.00019173,2]
[380211462,1755612637890,-500.0,0.00019173,2]
[380211463,1755612637900,-500.0,0.00019173,2]
[380211464,1755612637909,-500.0,0.00019173,2]
[380211465,1755612637919,-500.0,0.00019173,2]
[380211466,1755612637929,-500.0,0.00019173,2]
[380211468,1755612637938,-501.35145141,0.00019173,2]
[380211470,1755612637952,-503.87076081,0.00019173,2]
[380211471,1755612637965,-500.0,0.00019173,2]
[380211473,1755612637975,-500.0,0.00019173,2]
[380211475,1755612637984,-500.0,0.00019173,2]
[380211477,1755612637994,-500.0,0.00019173,2]
[380211479,1755612638003,-7739.64899991,0.00019178,2]
[380211481,1755612638013,-480.0,0.00019178,2]
[380211482,1755612638022,-480.0,0.00019178,2]
[380211483,1755612638031,-480.0,0.00019178,2]
[380211484,1755612638041,-462.0224702,0.00019178,2]
[380211485,1755612638051,-461.5908199,0.00019178,2]
[380211486,1755612638060,-480.0,0.00019178,2]
[380211487,1755612638070,-480.0,0.00019178,2]
[380211488,1755612638079,-480.0,0.00019178,2]
[380211489,1755612638088,-322.40961275,0.00019178,2]
[380211490,1755612638097,-338.74575135,0.00019178,2]
[380211491,1755612638107,-480.0,0.00019178,2]
[380211492,1755612638116,-480.0,0.00019178,2]
[380211493,1755612638125,-480.0,0.00019178,2]
[380211494,1755612638134,-460.9486442,0.00019178,2]
[380211495,1755612638144,-480.0,0.00019178,2]
[380211496,1755612638153,-559.67047086,0.00019178,2]
[380211497,1755612638163,-480.0,0.00019178,2]